bitfinex-derivatives/quotes_SOLF0:USTF0_20250328
["timestamp","ask_amount","ask_price","bid_price","bid_amount"]
[1743148984241,0.66205,131.8,131.79,7.5907]
[1743148984541,0.66205,131.8,131.77,0.05129725]
[1743148985234,7.5907,131.79,131.77,0.05129725]
[1743148985431,0.66205,131.8,131.77,0.05129725]
[1743148985837,8.25245,131.8,131.77,7.64279725]
[1743148986038,0.66205,131.8,131.77,7.64279725]
[1743148986440,8.25235,131.8,131.77,7.64279725]
[1743148986835,8.25235,131.8,131.78,7.5912]
[1743148987343,8.25235,131.8,131.77,7.64279725]
[1743148988242,0.66205,131.8,131.77,7.64279725]
[1743148988539,0.66205,131.8,131.78,7.5911]
[1743148988836,0.66205,131.8,131.79,7.5907]
[1743148989037,0.66205,131.8,131.77,0.05129725]
[1743148989642,8.25255,131.8,131.77,7.64279725]
[1743148990140,0.66205,131.8,131.77,0.05129725]
[1743148990641,0.66205,131.8,131.79,7.5907]
[1743148991341,0.66205,131.8,131.77,0.05129725]
[1743148993140,0.66205,131.8,131.78,7.5909]
[1743148994647,7.5889,131.82,131.78,7.5909]
[1743148994943,29.84,131.83,131.78,7.5909]
[1743148995144,37.4286,131.83,131.78,7.5909]
[1743148995644,29.84,131.83,131.79,7.5903]
[1743148995944,29.84,131.83,131.75,21.42]
[1743148996145,29.84,131.83,131.8,0.05750436]
[1743148996946,7.589,131.82,131.8,0.05750436]
[1743148997144,29.92,131.82,131.8,0.05750436]
[1743148998942,29.92,131.82,131.81,9.74765069]
[1743148999350,37.5089,131.82,131.81,9.74765069]
[1743148999851,29.92,131.82,131.8,9.80515505]
[1743149000844,39.66765069,131.82,131.77,9.74765069]
[1743149001144,39.66765069,131.82,131.76,9.74765069]
[1743149001145,7.5912,131.78,131.76,9.74765069]
[1743149001350,30.02,131.78,131.76,9.74765069]
[1743149001550,30.02,131.78,131.77,9.74765069]
[1743149002343,30.02,131.78,131.76,0.05450181]
[1743149002344,30.02,131.78,131.76,9.8021525]
[1743149002950,37.6116,131.78,131.76,0.05450181]
[1743149003349,30.02,131.78,131.76,0.05450181]
[1743149003548,7.5918,131.77,131.76,0.05450181]
[1743149003745,30.02,131.78,131.76,0.05450181]
[1743149004351,30.02,131.78,131.76,15.29744525]
[1743149005044,37.6115,131.78,131.76,15.29744525]
[1743149005248,30.02,131.78,131.76,0.05450181]
[1743149005549,7.5918,131.77,131.76,0.05450181]
[1743149008052,392.0521,131.76,131.6,15.24294344]
[1743149008351,392.0521,131.76,131.58,250.46]
[1743149008352,15.24294344,131.72,131.63,22.84254344]
[1743149008553,7.598,131.67,131.63,15.24294344]
[1743149008751,15.24294344,131.72,131.63,15.24294344]
[1743149008752,29.9,131.68,131.63,15.24294344]
[1743149009051,7.5985,131.66,131.63,15.24294344]
[1743149009250,7.5985,131.66,131.64,0.05485701]
[1743149009449,30.0,131.65,131.64,0.05485701]
[1743149009751,37.5987,131.65,131.64,0.05485701]
[1743149010152,30.0,131.65,131.64,0.05485701]
[1743149010955,0.05584222,131.67,131.64,0.05485701]
[1743149011551,7.65364222,131.67,131.64,0.05485701]
[1743149011748,0.05584222,131.67,131.65,15.24294344]
[1743149015057,0.05584222,131.67,131.64,0.05485701]
[1743149015360,7.5983,131.66,131.64,0.05485701]
[1743149015749,0.05584222,131.67,131.64,0.05485701]
[1743149016656,7.5985,131.66,131.64,0.05485701]
[1743149016954,0.05584222,131.67,131.64,0.05485701]
[1743149016955,29.82,131.65,131.64,0.05485701]
[1743149017149,37.4187,131.65,131.64,0.05485701]
[1743149017552,29.82,131.65,131.64,0.05485701]
[1743149018061,0.05584222,131.67,131.64,29.91485701]
[1743149018358,7.5945,131.73,131.66,15.24294344]
[1743149018557,37.4745,131.73,131.69,15.24294344]
[1743149018954,29.88,131.73,131.69,15.24294344]
[1743149019158,29.88,131.73,131.71,15.24294344]
[1743149019349,29.93069623,131.73,131.71,15.29296178]
[1743149019554,29.93069623,131.73,131.71,0.05001834]
[1743149020460,341.0521,131.86,131.72,60.72588688]
[1743149020660,7.5886,131.83,131.78,15.24294344]
[1743149021253,41.7705,131.85,131.78,15.24294344]
[1743149021459,371.2921,131.86,131.8,15.24294344]
[1743149021657,371.2921,131.86,131.8,15.29636165]
[1743149022060,7.5878,131.84,131.8,15.29636165]
[1743149022856,37.8478,131.84,131.8,0.05341821]
[1743149023262,37.8478,131.84,131.78,23.56668175]
[1743149023565,37.8478,131.84,131.78,31.15778175]
[1743149024861,0.05174444,131.82,131.8,0.05793605]
[1743149025063,30.22,131.9,131.8,24.42744959]
[1743149025264,30.22,131.9,131.82,24.36951354]
[1743149025565,30.22,131.9,131.8,24.36951354]
[1743149026160,30.22,131.9,131.84,0.05251152]
[1743149026466,7.5877,131.85,131.84,0.05251152]
[1743149027263,37.8067,131.86,131.84,0.05251152]
[1743149027464,30.22,131.86,131.84,0.05251152]
[1743149028263,7.5872,131.85,131.84,0.05251152]
[1743149028963,7.5868,131.86,131.84,0.05251152]
[1743149029157,37.7668,131.86,131.84,0.05251152]
[1743149030263,7.5872,131.85,131.84,0.05251152]
[1743149030764,30.14,131.92,131.84,24.42202506]
[1743149030961,30.14,131.92,131.84,24.36951354]
[1743149031165,30.14,131.92,131.87,0.05023145]
[1743149031366,7.5855,131.88,131.87,0.05023145]
[1743149031565,37.7255,131.88,131.87,0.05023145]
[1743149038473,37.72,131.88,131.77,24.36951354]
[1743149038668,4.2872,131.87,131.79,24.36951354]
[1743149038869,4.2872,131.87,131.8,7.5898]
[1743149039068,4.2872,131.87,131.79,24.36951354]
[1743149039571,0.05336824,131.84,131.82,0.04994066]
[1743149039875,29.9,131.83,131.82,0.04994066]
[1743149040074,37.4884,131.83,131.82,0.04994066]
[1743149042076,29.9,131.83,131.82,0.04994066]
[1743149042573,0.05336824,131.84,131.82,0.04994066]
[1743149042775,29.86,131.86,131.82,8.39824066]
[1743149043077,29.86,131.86,131.85,15.21882229]
[1743149043376,4.2007,131.91,131.85,15.21882229]
[1743149043574,29.86,131.88,131.85,15.21882229]
[1743149043877,7.5864,131.87,131.85,15.26975709]
[1743149044475,29.86,131.88,131.85,15.26975709]
[1743149045078,29.86,131.88,131.85,0.0509348]
[1743149045274,29.86,131.88,131.85,15.26975709]
[1743149045476,37.4458,131.88,131.85,22.85665709]
[1743149046377,7.5861,131.87,131.85,22.85665709]
[1743149046573,341.0521,131.92,131.85,22.85665709]
[1743149046877,7.5858,131.88,131.85,22.85665709]
[1743149047078,7.5858,131.88,131.85,22.80572229]
[1743149047267,7.5858,131.88,131.85,22.86202542]
[1743149047678,7.5861,131.87,131.85,15.27512542]
[1743149048385,7.5857,131.88,131.85,22.86232542]
[1743149048985,7.5862,131.87,131.85,15.27512542]
[1743149049485,7.5858,131.88,131.85,22.86202542]
[1743149051687,29.76,131.89,131.87,15.21882229]
[1743149052184,4.0848,131.95,131.87,15.21882229]
[1743149052387,7.5837,131.92,131.89,15.21882229]
[1743149052688,7.5837,131.92,131.9,0.0510593]
[1743149052887,37.1637,131.92,131.9,0.0510593]
[1743149053289,29.58,131.92,131.9,0.0510593]
[1743149053588,7.5823,131.94,131.9,0.0510593]
[1743149053589,4.1558,131.96,131.91,7.5838]
[1743149053791,37.1419,131.95,131.91,7.5838]
[1743149053989,37.1419,131.95,131.9,0.0510593]
[1743149053990,29.56,131.95,131.9,0.0510593]
[1743149054789,7.5823,131.94,131.9,0.0510593]
[1743149055491,7.5827,131.93,131.9,0.0510593]
[1743149057494,29.56,131.95,131.9,0.0510593]
[1743149059688,44.77882229,131.95,131.9,0.0510593]
[1743149060496,7.5838,131.91,131.9,0.0510593]
[1743149060794,37.2438,131.91,131.9,0.0510593]
[1743149061690,341.0521,131.9,131.76,1.31945629]
[1743149061993,44.83882229,131.89,131.8,15.21882229]
[1743149062195,7.5886,131.83,131.8,15.21882229]
[1743149062594,29.62,131.84,131.8,15.21882229]
[1743149062793,37.2083,131.84,131.8,15.21882229]
[1743149062992,0.04901408,131.83,131.81,0.05498262]
[1743149063386,7.63751408,131.83,131.81,0.05498262]
[1743149064098,7.5889,131.82,131.81,0.05498262]
[1743149064796,0.04901408,131.83,131.76,15.21882229]
[1743149064797,7.5912,131.78,131.76,15.21882229]
[1743149065003,29.62,131.84,131.76,15.21882229]
[1743149065296,29.56,131.93,131.82,15.21882229]
[1743149065601,33.7585,131.93,131.85,15.21882229]
[1743149065801,7.5852,131.89,131.85,15.21882229]
[1743149066002,7.5852,131.89,131.88,0.05205554]
[1743149066201,0.05131455,131.9,131.88,0.05205554]
[1743149069003,29.6,131.89,131.88,0.05205554]
[1743149069402,37.1849,131.89,131.88,0.05205554]
[1743149069603,29.6,131.89,131.88,0.05205554]
[1743149069808,37.1849,131.89,131.88,0.05205554]
[1743149069998,29.6,131.89,131.88,0.05205554]
[1743149070805,0.05131455,131.9,131.88,0.05205554]
[1743149071602,7.63601455,131.9,131.88,0.05205554]
[1743149071801,0.05131455,131.9,131.88,0.05205554]
[1743149071998,29.52,131.89,131.88,0.05205554]
[1743149072203,37.1049,131.89,131.88,0.05205554]
[1743149072398,29.52,131.89,131.88,0.05205554]
[1743149072800,37.1049,131.89,131.88,0.05205554]
[1743149073000,29.52,131.89,131.82,8.1508]
[1743149073205,29.52,131.89,131.81,265.49882229]
[1743149073405,7.587,131.86,131.82,7.5889]
[1743149073607,29.52,131.86,131.81,265.49882229]
[1743149073805,29.52,131.86,131.81,250.28]
[1743149074105,29.52,131.86,131.82,7.5886]
[1743149074405,0.04828249,131.85,131.82,7.6378701]
[1743149075503,7.63558249,131.85,131.82,7.6378701]
[1743149075700,0.04828249,131.85,131.82,0.0492701]
[1743149076706,0.04828249,131.85,131.82,7.6380701]
[1743149077006,0.04828249,131.85,131.82,0.0492701]
[1743149078002,0.04828249,131.85,131.83,15.21882229]
[1743149078799,0.04828249,131.85,131.84,7.5878]
[1743149079710,370.7521,131.91,131.87,7.586]
[1743149080011,37.2843,131.91,131.85,15.21882229]
[1743149080708,37.2843,131.91,131.87,7.5855]
[1743149080910,0.04981526,131.89,131.87,7.63515193]
[1743149081211,0.04981526,131.89,131.87,7.63545193]
[1743149082111,0.04981526,131.89,131.88,7.5855]
[1743149083912,29.96,131.97,131.88,15.21882229]
[1743149084114,15.21882229,131.95,131.87,0.04965193]
[1743149084411,15.21882229,131.95,131.87,7.5857]
[1743149084614,15.21882229,131.95,131.86,35.58882229]
[1743149084813,15.21882229,131.95,131.86,43.17522229]
[1743149085013,7.5841,131.91,131.89,0.05673346]
[1743149085217,37.5641,131.91,131.89,0.05673346]
[1743149086213,7.5843,131.9,131.89,0.05673346]
[1743149087112,37.564,131.91,131.89,0.05673346]
[1743149087411,29.98,131.91,131.89,0.05673346]
[1743149089114,7.5843,131.9,131.89,0.05673346]
[1743149089315,29.98,131.91,131.86,43.17522229]
[1743149089316,45.19882229,131.91,131.86,20.37]
[1743149089811,7.5861,131.87,131.86,20.37]
[1743149090012,37.8461,131.87,131.86,20.37]
[1743149090214,30.28,131.9,131.86,20.37]
[1743149090413,0.05472218,131.88,131.86,27.9563]
[1743149091716,7.64032218,131.88,131.86,20.37]
[1743149092314,7.5861,131.87,131.86,20.37]
[1743149092515,0.05472218,131.88,131.86,20.37]
[1743149093219,7.64052218,131.88,131.86,20.37]
[1743149095317,30.26,131.9,131.86,15.21882229]
[1743149095518,30.6,131.93,131.88,15.21882229]
[1743149096116,7.5847,131.9,131.87,7.5857]
[1743149096317,30.6,131.93,131.86,15.21882229]
[1743149096522,0.05220743,131.9,131.87,0.05274993]
[1743149096824,0.05220743,131.9,131.89,7.5849]
[1743149098324,0.05220743,131.9,131.88,22.80402229]
[1743149098518,0.05220743,131.9,131.88,15.21882229]
[1743149098718,0.05220743,131.9,131.89,7.5849]
[1743149101419,30.56,132.03,131.92,15.21882229]
[1743149101618,45.77882229,132.03,131.94,15.21882229]
[1743149101814,15.21882229,132.01,131.92,15.21882229]
[1743149102421,7.5806,131.97,131.95,0.0483361]
[1743149102621,30.56,131.96,131.95,0.0483361]
[1743149104421,7.5799,131.98,131.95,0.0483361]
[1743149104623,4.033,132.02,131.97,7.5803]
[1743149104821,7.5801,131.98,131.94,15.21882229]
[1743149105021,30.56,132.01,131.94,15.21882229]
[1743149105321,34.7056,132.01,131.95,0.05308853]
[1743149106521,7.5807,131.97,131.95,0.05308853]
[1743149106725,30.56,131.97,131.95,0.05308853]
[1743149107024,38.1406,131.97,131.95,0.05308853]
[1743149107424,30.56,131.97,131.95,0.05308853]
[1743149107626,7.5809,131.96,131.95,0.05308853]
[1743149110826,38.1405,131.97,131.95,0.05308853]
[1743149112323,30.56,131.97,131.95,0.05308853]
[1743149112528,30.76,132.0,131.96,15.21882229]
[1743149112930,38.339,132.0,131.97,7.63792164]
[1743149113125,7.579,132.0,131.97,0.05792164]
[1743149113623,7.579,132.0,131.97,7.63792164]
[1743149113822,30.82,132.01,131.97,0.05792164]
[1743149114430,7.5797,131.98,131.97,0.05792164]
[1743149114931,7.5797,131.98,131.97,23.38792164]
[1743149116230,7.5797,131.98,131.97,2.164e-05]
[1743149117428,7.5803,131.97,131.96,0.05497821]
[1743149117631,38.3203,131.97,131.96,0.05497821]
[1743149119434,30.74,131.97,131.96,0.05497821]
[1743149119632,0.05333349,131.99,131.96,15.2738005]
[1743149120336,0.05333349,131.99,131.96,0.05497821]
[1743149120732,30.73333349,131.99,131.96,22.8547005]
[1743149121235,7.58,131.98,131.96,15.2738005]
[1743149122030,30.73333349,131.99,131.96,22.8544005]
[1743149122437,30.73333349,131.99,131.96,15.2738005]
[1743149122634,7.5801,131.98,131.96,15.2738005]
[1743149123035,30.73333349,131.99,131.96,0.05497821]
[1743149123234,7.5803,131.97,131.96,0.05497821]
[1743149123736,7.5826,131.94,131.92,25.82]
[1743149124437,38.2417,131.95,131.92,25.82]
[1743149124638,30.66,131.95,131.92,25.82]
[1743149124836,30.71409621,131.95,131.92,25.87028697]
[1743149125138,38.29579621,131.95,131.92,25.87028697]
[1743149125535,38.29579621,131.95,131.92,33.45318697]
[1743149125737,38.29579621,131.95,131.93,15.21882229]
[1743149126733,7.582,131.94,131.92,7.63318697]
[1743149126937,30.71409621,131.95,131.92,7.63318697]
[1743149127137,0.05409621,131.95,131.93,15.21882229]
[1743149128242,0.05409621,131.95,131.94,7.582]
[1743149130746,360.17142229,132.03,131.96,7.5808]
[1743149130942,30.44,132.02,131.96,7.5808]
[1743149131142,7.5796,131.99,131.96,7.5808]
[1743149131641,30.48,132.0,131.96,7.5808]
[1743149131841,7.5793,131.99,131.96,7.5808]
[1743149132042,7.6375396,131.99,131.97,0.05146602]
[1743149133146,7.6375396,131.99,131.97,7.63166602]
[1743149133349,0.0582396,131.99,131.97,7.63166602]
[1743149133847,7.6374396,131.99,131.97,0.05146602]
[1743149134843,0.0582396,131.99,131.98,7.5797]
[1743149138348,15.27706189,131.99,131.91,15.21882229]
[1743149138554,19.36692229,131.99,131.91,15.21882229]
[1743149138851,7.5819,131.95,131.91,22.80232229]
[1743149139038,38.0819,131.95,131.91,22.80232229]
[1743149139244,7.5821,131.94,131.91,22.80232229]
[1743149139545,7.63473289,131.94,131.91,22.85344386]
[1743149140049,7.63473289,131.94,131.91,15.26994386]
[1743149140450,7.5832,131.92,131.91,0.05112157]
[1743149140653,0.05263289,131.94,131.91,22.85324386]
[1743149141051,7.63503289,131.94,131.91,22.85324386]
[1743149141750,7.5801,131.98,131.95,7.581]
[1743149141944,30.62,132.02,131.95,22.79982229]
[1743149142252,7.5794,131.99,131.95,22.79982229]
[1743149142550,30.62,132.02,131.96,7.5808]
[1743149143057,7.62676772,132.0,131.98,0.05599656]
[1743149143248,0.04786772,132.0,131.98,0.05599656]
[1743149143953,7.62676772,132.0,131.98,0.05599656]
[1743149146557,7.5792,131.99,131.98,0.05599656]
[1743149146950,0.04786772,132.0,131.99,7.5792]
[1743149147155,30.62,132.06,131.99,15.21882229]
[1743149147356,30.62,132.06,131.97,45.67882229]
[1743149148055,30.62,132.06,132.01,7.5779]
[1743149148252,0.02927542,132.03,132.0,0.04986331]
[1743149149153,0.02927542,132.03,132.01,15.21882229]
[1743149149858,0.02927542,132.03,132.01,22.79652229]
[1743149150156,0.02927542,132.03,132.01,15.21882229]
[1743149152358,7.60647542,132.03,132.0,0.04986331]
[1743149152558,0.02927542,132.03,132.0,0.04986331]
[1743149153460,7.5775,132.02,132.0,0.04986331]
[1743149153657,0.02927542,132.03,132.0,0.04986331]
[1743149153960,7.60647542,132.03,132.0,0.04986331]
[1743149154161,356.1957,132.12,132.01,45.71882229]
[1743149154363,30.5,132.11,132.03,15.21882229]
[1743149154958,341.0521,132.12,132.05,15.21882229]
[1743149155160,30.5,132.11,132.05,22.79422229]
[1743149155360,30.5,132.11,132.07,0.04896582]
[1743149156160,7.574,132.08,132.07,0.04896582]
[1743149158060,7.5737,132.09,132.07,0.04896582]
[1743149158566,30.38,132.11,132.07,0.04896582]
[1743149159367,7.574,132.08,132.07,0.04896582]
[1743149160063,7.5737,132.09,132.07,0.04896582]
[1743149160561,30.38,132.11,132.07,0.04896582]
[1743149160769,7.574,132.08,132.07,0.04896582]
[1743149161066,30.38,132.11,132.07,0.04896582]
[1743149162370,7.574,132.08,132.07,0.04896582]
[1743149163067,30.38,132.11,132.07,0.04896582]
[1743149163364,15.21882229,132.14,132.07,0.04896582]
[1743149163572,30.2,132.15,132.08,15.21882229]
[1743149163967,30.2,132.15,132.1,0.04981722]
[1743149165371,37.691,132.14,132.1,7.62241722]
[1743149165567,15.21882229,132.12,131.95,15.21882229]
[1743149165870,15.21882229,132.1,132.0,15.21882229]
[1743149166072,34.1518,132.09,132.0,15.21882229]
[1743149166265,7.5749,132.07,132.01,7.5777]
[1743149166572,30.08,132.09,132.04,15.21882229]
[1743149166771,0.04788081,132.05,132.04,15.21882229]
[1743149166970,7.5745,132.08,132.04,15.21882229]
[1743149167173,0.04981722,132.06,132.04,15.21882229]
[1743149167471,0.04981722,132.06,132.03,0.05150639]
[1743149168064,7.62501722,132.06,132.03,0.05150639]
[1743149168268,0.04981722,132.06,132.03,0.05150639]
[1743149168460,30.02,132.05,132.03,0.05150639]
[1743149169064,30.02,132.05,131.98,30.1]
[1743149169065,30.02,132.05,131.98,15.21882229]
[1743149169973,30.02,132.05,131.98,34.21882229]
[1743149170369,7.5777,132.02,132.0,0.05568957]
[1743149170669,30.02,132.01,132.0,0.05568957]
[1743149171477,37.598,132.01,132.0,0.05568957]
[1743149172378,29.96,132.09,132.0,15.27451186]
[1743149172578,29.96,132.09,132.03,15.21882229]
[1743149172774,7.5749,132.07,132.03,15.21882229]
[1743149173580,0.04703842,132.06,132.04,0.05217884]
[1743149174080,0.04703842,132.06,132.05,15.21882229]
[1743149174575,37.4938,132.09,132.05,15.21882229]
[1743149177084,29.84,132.12,132.07,15.21882229]
[1743149177281,45.0635661,132.14,132.07,15.21882229]
[1743149177582,7.5721,132.12,132.08,0.05487566]
[1743149177776,45.0635661,132.14,132.08,0.05487566]
[1743149178186,74.8835661,132.14,132.08,0.05487566]
[1743149178475,7.5718,132.12,132.08,0.05487566]
[1743149178975,7.5718,132.12,132.09,15.21882229]
[1743149179368,7.5723,132.11,132.09,15.21882229]
[1743149179777,7.5723,132.11,132.08,0.05487566]
[1743149180169,29.8,132.11,132.08,0.05487566]
[1743149180774,7.5732,132.1,132.08,0.05487566]
[1743149180975,41.4137661,132.16,132.09,15.21882229]
[1743149181175,71.2137661,132.16,132.09,15.21882229]
[1743149181378,71.2137661,132.16,132.11,0.05097383]
[1743149181874,7.5703,132.15,132.11,0.05097383]
[1743149183878,29.72,132.14,132.11,7.62307383]
[1743149184582,37.2907,132.14,132.11,0.05097383]
[1743149185178,29.72,132.14,132.11,7.62317383]
[1743149185972,37.2906,132.14,132.11,7.62317383]
[1743149186175,29.72,132.14,132.11,15.26979612]
[1743149186377,10.35344152,132.2,132.11,15.26979612]
[1743149186580,10.35344152,132.2,132.16,15.21882229]
[1743149186879,40.17344152,132.2,132.16,22.78782229]
[1743149187079,47.74094152,132.2,132.17,0.04963455]
[1743149187280,40.17344152,132.2,132.17,0.04963455]
[1743149187486,29.82,132.2,132.17,0.04963455]
[1743149187788,7.5677,132.19,132.17,0.04963455]
[1743149187976,29.82,132.2,132.17,0.04963455]
[1743149188281,7.5677,132.19,132.17,0.04963455]
[1743149188479,29.82,132.2,132.17,0.04963455]
[1743149188880,7.568,132.19,132.17,0.04963455]
[1743149189077,29.82,132.2,132.17,0.04963455]
[1743149189383,7.568,132.19,132.17,0.04963455]
[1743149189579,29.82,132.2,132.17,0.04963455]
[1743149189981,7.568,132.19,132.17,0.04963455]
[1743149190382,7.5683,132.18,132.17,0.04963455]
[1743149190989,7.5698,132.16,132.12,251.9883]
[1743149191177,29.76,132.16,132.12,2.1283]
[1743149191987,0.04963455,132.15,132.13,0.04776504]
[1743149192188,0.04963455,132.15,132.13,15.26658733]
[1743149193583,41.4137661,132.24,132.13,15.26658733]
[1743149193782,29.78,132.22,132.15,15.21882229]
[1743149193989,15.21882229,132.21,132.11,15.21882229]
[1743149194181,15.21882229,132.19,132.11,15.21882229]
[1743149194387,7.5707,132.14,132.11,22.79072229]
[1743149194584,37.3507,132.14,132.11,22.79072229]
[1743149194790,29.78,132.14,132.11,0.05748008]
[1743149195992,37.3506,132.14,132.11,0.05748008]
[1743149196386,7.5713,132.13,132.11,0.05748008]
[1743149196685,29.78,132.14,132.11,0.05748008]
[1743149197191,7.5711,132.13,132.11,0.05748008]
[1743149197392,29.78,132.14,132.11,0.05748008]
[1743149197787,7.5717,132.12,132.11,0.05748008]
[1743149199196,135.00428146,132.23,132.11,15.27630237]
[1743149199388,29.72,132.2,132.15,15.21882229]
[1743149199583,29.72,132.2,132.15,22.83737913]
[1743149199790,29.72,132.2,132.15,15.26747913]
[1743149199988,29.72,132.2,132.18,7.5683]
[1743149200188,41.4137661,132.21,132.19,15.21882229]
[1743149200587,41.4137661,132.21,132.2,7.5671]
[1743149201495,40.09344152,132.23,132.21,7.5663]
[1743149201686,40.09344152,132.23,132.21,15.21882229]
[1743149201886,40.09344152,132.23,132.21,15.27148145]
[1743149202081,10.35344152,132.23,132.22,7.566]
[1743149202382,31.06032458,132.24,132.21,15.27148145]
[1743149202583,31.06032458,132.24,132.23,15.21882229]
[1743149205293,29.74,132.26,132.23,15.21882229]
[1743149205995,29.86,132.27,132.23,15.21882229]
[1743149206493,129.00755681,132.33,132.23,15.21882229]
[1743149206494,29.84,132.31,132.24,0.05314933]
[1743149206796,29.84,132.31,132.13,249.68]
[1743149206797,15.21882229,132.27,132.13,249.68]
[1743149206990,29.84,132.26,132.17,15.21882229]
[1743149207191,7.5666,132.21,132.17,22.78762229]
[1743149207694,7.5666,132.21,132.17,15.21882229]
[1743149208093,29.8,132.29,132.19,15.21882229]
[1743149208297,29.88,132.31,132.23,15.21882229]
[1743149208496,5.56734688,132.34,132.27,15.21882229]
[1743149208892,5.56734688,132.34,132.26,24.1889908]
[1743149209087,7.5599,132.33,132.26,31.7523908]
[1743149209293,7.5599,132.33,132.29,0.04876734]
[1743149209493,37.5199,132.33,132.29,0.04876734]
[1743149209695,29.96,132.33,132.29,0.04876734]
[1743149211099,29.96,132.33,132.3,7.5613]
[1743149211401,29.96,132.33,132.29,24.23775814]
[1743149211598,29.96,132.33,132.3,7.5614]
[1743149211897,29.96,132.33,132.29,0.04876734]
[1743149212100,7.5614,132.3,132.29,0.04876734]
[1743149212298,37.4614,132.3,132.29,0.04876734]
[1743149212997,7.5631,132.28,132.21,303.7489908]
[1743149213194,29.9,132.3,132.21,303.7489908]
[1743149213502,29.9,132.3,132.21,273.8689908]
[1743149213695,29.9,132.3,132.22,7.5658]
[1743149213901,29.9,132.3,132.21,273.8689908]
[1743149214301,7.61349979,132.27,132.24,0.04787631]
[1743149214505,37.49349979,132.27,132.24,0.04787631]
[1743149214998,0.04999979,132.27,132.24,0.04787631]
[1743149215603,0.04999979,132.27,132.25,7.5638]
[1743149216507,5.56734688,132.34,132.25,7.56]
[1743149216707,30.14,132.33,132.23,24.1889908]
[1743149217008,5.56734688,132.34,132.23,24.1889908]
[1743149217207,35.72734688,132.34,132.28,24.1889908]
[1743149217506,35.72734688,132.34,132.3,0.05055297]
[1743149218208,7.5598,132.33,132.3,0.05055297]
[1743149218411,35.72734688,132.34,132.3,0.05055297]
[1743149218707,7.5608,132.31,132.3,0.05055297]
[1743149220411,7.5625,132.29,132.24,1.9839]
[1743149220616,37.7225,132.29,132.24,1.9839]
[1743149220816,37.7225,132.29,132.26,7.5634]
[1743149221020,30.16,132.29,132.25,24.1889908]
[1743149221616,0.05358359,132.28,132.26,0.05373782]
[1743149222117,5.56734688,132.34,132.27,30.2]
[1743149222308,5.56734688,132.34,132.28,24.1889908]
[1743149222708,5.56734688,132.34,132.26,24.1889908]
[1743149222909,13.12674688,132.34,132.3,7.5614]
[1743149223318,5.56734688,132.34,132.31,0.05246789]
[1743149223622,5.56734688,132.34,132.31,7.61316789]
[1743149224425,5.56734688,132.34,132.32,7.5602]
[1743149224723,13.12674688,132.34,132.31,0.05246789]
[1743149225224,5.56734688,132.34,132.31,0.05246789]
[1743149226017,5.56734688,132.34,132.32,7.5603]
[1743149226217,13.12674688,132.34,132.31,24.24145869]
[1743149226423,13.12674688,132.34,132.31,0.05246789]
[1743149226723,7.5566,132.39,132.31,24.24145869]
[1743149226927,7.5566,132.39,132.31,26.3048908]
[1743149227225,38.6966,132.39,132.34,0.05442413]
[1743149227423,38.6966,132.39,132.35,7.5582]
[1743149227622,7.5568,132.38,132.34,0.05442413]
[1743149228113,7.5565,132.39,132.35,7.5585]
[1743149228320,31.08,132.41,132.34,24.24341493]
[1743149228519,113.88785681,132.42,132.34,24.1889908]
[1743149228715,31.1,132.41,132.36,0.05392136]
[1743149228923,113.88785681,132.42,132.36,0.05392136]
[1743149229228,121.44275681,132.42,132.38,7.5567]
[1743149229425,31.08,132.41,132.38,7.5567]
[1743149229624,31.08,132.42,132.39,0.05367927]
[1743149231132,7.5554,132.41,132.39,0.05367927]
[1743149231426,113.88785681,132.45,132.39,0.05367927]
[1743149231621,113.88785681,132.45,132.41,24.1889908]
[1743149231822,144.96785681,132.45,132.39,249.44]
[1743149232024,7.554,132.43,132.42,4.958e-05]
[1743149232425,15.114,132.43,132.42,4.958e-05]
[1743149233225,31.7489908,132.43,132.3,24.1889908]
[1743149233424,341.0521,132.42,132.3,24.1889908]
[1743149233728,31.14,132.41,132.3,24.1889908]
[1743149233924,4.0029,132.41,132.33,24.1889908]
[1743149234127,35.1029,132.41,132.36,24.1889908]
[1743149234429,0.05371842,132.38,132.36,24.23858831]